Workbook

Sheet Exercício 1 - Levantamento em F
B1: Felipe Zanon Lima - 11242964 - Inventário florestal - Exercício aula 11
A2: 1- | B2: Utilize os dados abaixo para comparar os estimadores padrão da Amostragem Aleatória Simples com os estimadores de razão.
A3: 2 - | B3: Tome como variável de interesse (y) o número de árvores, e encontre o número médio de árvores por hectare com respectivo intervalo de confiança de 95%.
A4: 3 - | B4: Utilize como variável auxiliar (x) para o estimador de razão o tamanho da parcela.
A5: 4 - | B5: Encontre para ambos tipos de estimadores o tamanho de amostra necessário para erro amostral de 5% (a 95% de probabilidade)
C7: Parcela | D7: Área da Parcela (ha) | E7: Número de Árvores | F7: Número de Árvores por Hectare (/ha) | H7: Número de Árvores | L7: Número de Árvores (/ha) | S7: (yi - Rxi)²
C8: 101 | D8: 0.115 | E8: 47 | F8: =E8/D8 -> 408.6956522 | H8: Área total | I8: tau x = | J8: 500 | L8: Média | M8: mu = | N8: =AVERAGE(F8:F24) -> 334.0409207 | P8: Estimador de razão | S8: =(E8-(D8*Q11))^2 -> 93.50241655
C9: 405 | D9: 0.25 | E9: 72 | F9: 288 | H9: Eixo = | I9: 12500 | L9: Variância | M9: σ² = | N9: =_xlfn.VAR.S(F8:F24) -> 3692.963249 | P9: mux = | Q9: =AVERAGE(D8:D24) -> 0.3597058824 | S9: =(E9-(D9*Q11))^2 -> 83.7756278
C10: 408 | D10: 0.25 | E10: 83 | F10: 332 | H10: Tamanho médio de parcelas de 10 m | I10: 0.4 | L10: Tamanho da amostra | M10: n = | N10: 17 | P10: muy = | Q10: =AVERAGE(E8:E24) -> 116.7647059 | S10: =(E10-(D10*Q11))^2 -> 3.411768442
C11: 410 | D11: 0.25 | E11: 95 | F11: 380 | H11: N° de parcelas em fx | I11: N = | J11: 1250 | L11: Variância da média | M11: Var (mu) = | N11: =(N9/N10)*(1-(N10/J11)) -> 214.2787617 | P11: R = | Q11: =Q10/Q9 -> 324.6116108 | S11: =(E11-(D11*Q11))^2 -> 191.7421037
C12: 412 | D12: 0.25 | E12: 105 | F12: 420 | L12: Est. T | M12: t = | N12: 2.12 | P12: σ²R = | Q12: =SUM(S8:S24)/(J15-1) -> 445.4432322 | S12: =(E12-(D12*Q11))^2 -> 568.6840497
C13: 413 | D13: 0.25 | E13: 108 | F13: 432 | H13: Média | I13: mu = | J13: =AVERAGE(E8:E24) -> 116.7647059 | L13: Erro amostral | M13: E = | N13: =N12*SQRT(N11) -> 31.03311887 | S13: =(E13-(D13*Q11))^2 -> 720.7666335
C14: 415 | D14: 0.25 | E14: 60 | F14: 240 | H14: Variância | I14: σ² = | J14: =_xlfn.VAR.S(E8:E24) -> 1875.191176 | P14: Var R = | Q14: =(Q12/(J15*I10))*(1-(J15/J11)) -> 64.61547121 | S14: =(E14-(D14*Q11))^2 -> 447.4452926
C15: 416 | D15: 0.25 | E15: 91 | F15: 364 | H15: Tamanho da amostra | I15: n = | J15: 17 | P15: Erro amostral | Q15: =J17*SQRT(Q14) -> 17.04135481 | S15: =(E15-(D15*Q11))^2 -> 96.96532527
C16: 417 | D16: 0.25 | E16: 83 | F16: 332 | H16: Variância da média | I16: Var (mu) = | J16: =(J14/J15)*(1-(J15/J11)) -> 108.8052104 | P16: Erro amostral (%) | Q16: =(Q15/Q11)*100 -> 5.24976749 | S16: =(E16-(D16*Q11))^2 -> 3.411768442
C17: 401 | D17: 0.5 | E17: 158 | F17: 316 | H17: Est. T | I17: t = | J17: 2.12 | S17: =(E17-(D17*Q11))^2 -> 18.53996011
C18: 403 | D18: 0.5 | E18: 121 | F18: 242 | H18: Erro amostral | J18: =J17*SQRT(J16) -> 22.11366405 | P18: Tamanho de amostra | S18: =(E18-(D18*Q11))^2 -> 1706.169559
C19: 404 | D19: 0.5 | E19: 120 | F19: 240 | H19: Erro amostral (%) | J19: =(J18/J13)*100 -> 18.93865435 | P19: E_% = | Q19: 5 | S19: =(E19-(D19*Q11))^2 -> 1789.78117
C20: 406 | D20: 0.5 | E20: 171 | F20: 342 | P20: V_% = | Q20: =(SQRT(Q12)/Q11)*100 -> 6.501777941 | S20: =(E20-(D20*Q11))^2 -> 75.5890198
C21: 407 | D21: 0.5 | E21: 143 | F21: 286 | H21: Tamanho de amostra | S21: =(E21-(D21*Q11))^2 -> 372.714122
C22: 409 | D22: 0.5 | E22: 166 | F22: 332 | H22: E_% = | I22: 5 | P22: Iteração | S22: =(E22-(D22*Q11))^2 -> 13.64707377
C23: 411 | D23: 0.5 | E23: 192 | F23: 384 | H23: V_% = | I23: =(J14/J13) *100 -> 1605.957179 | P23: t | Q23: n | S23: =(E23-(D23*Q11))^2 -> 881.7451931
C24: 414 | D24: 0.5 | E24: 170 | F24: 340 | P24: 2.12 | Q24: =(J17^2 * Q20^2 * J11)/(Q19^2 * Q10 + J17^2 * Q20^2) -> 76.38532326 | S24: =(E24-(D24*Q11))^2 -> 59.2006306
H25: Iteração | I25: t | J25: n | P25: 1.96 | Q25: =(P25^2 * Q20^2 * J11)/(Q19^2 * Q10 + P25^2 * Q20^2) -> 65.87524885
I26: 2.12 | J26: =(J11*((I23 * J17)^2))/(I22^2 * J11+ ((J17 * I23)^2)) -> 1246.639134
I27: 1.96 | J27: =(J11*((I27*I23)^2)/(I22^2*J11+((I27*I23)^2))) -> 1246.069821
A30: 1- | B30: O estimador de razão é muitas vezes mais eficiente em relação ao estimador da amostragem aleatória simples,
B31: o que faz com que seja necessário menos parcelas para se obter um mesmo erro aceitável.
A33: 2- | B33: O número médio de árvores por hectare com um intervalo de confiança de 95% é de 334, mais ou menos 31.
A35: 3- | B35: Utilizando o tamanho da parcela para se obter o estimador de razão, tem-se um R de 324,6.
A37: 4- | B37: Para o estimador da amostragem aleatória simples, obteve-se um tamanho de amostra de 1247, ao
B38: passo que, para o estimador de razão, encontrou-se um tamanho de amostra de 66.

Sheet Exercício 2 - Inventário Urbano
B1: Felipe Zanon Lima - 11242964 - Inventário florestal - Exercício aula 11
A2: 1- | B2: Utilizando os dados abaixo, encontre o número total de árvores nas vias públicas do bairro utilizando o estimador de razão
A3: 2 - | B3: Compare as estimativas e a precisão obtida considerando duas possibilidades como variável auxiliar (x): (a) o perímetro da quadra e (b) a área da quadra.
A4: 3 - | B4: Encontre o tamanho de amostra necessário para erro amostral de 5% (a 95% de probabilidade) nos dois casos de variável auxiliar.
C6: Identificador da Quadra | D6: Área da Quadra em m2 | E6: Perímetro da Quadra em m | F6: Número de Árvores na Quadra | H6: Perímetro | N6: Área
C7: 105 | D7: 10386 | E7: 423.33 | F7: 26 | L7: (yi - Rxi)² | R7: (yi - Rxi)²
C8: 172 | D8: 10269 | E8: 414.19 | F8: 15 | H8: Estimador de razão | L8: =(F7-(E7*I11))^2 -> 33.96600257 | N8: Estimador de razão | R8: =(F7-(D7*O11))^2 -> 110.3187157
C9: 2062 | D9: 36554 | E9: 1176.1 | F9: 30 | H9: mux = | I9: =AVERAGE(E7:E36) -> 631.6803333 | L9: =(F8-(E8*I11))^2 -> 22.43383391 | N9: mux = | O9: =AVERAGE(D7:D36) -> 20173.2 | R9: =(F8-(D8*O11))^2 -> 0.103783932
C10: 26355 | D10: 12953 | E10: 450.73 | F10: 25 | H10: muy = | I10: =AVERAGE(F7:F36) -> 30.1 | L10: =(F9-(E9*I11))^2 -> 678.1841775 | N10: muy = | O10: =AVERAGE(F7:F36) -> 30.1 | R10: =(F9-(D9*O11))^2 -> 602.2823322
C11: 33592 | D11: 9393 | E11: 392.91 | F11: 19 | H11: R = | I11: =I10/I9 -> 0.04765068407 | L11: =(F10-(E10*I11))^2 -> 12.40735225 | N11: R = | O11: =O10/O9 -> 0.001492078599 | R11: =(F10-(D10*O11))^2 -> 32.18413059
C12: 43007 | D12: 24703 | E12: 662.95 | F12: 43 | H12: ty = | I12: =I11*E39 -> 7524.419456 | L12: =(F11-(E11*I11))^2 -> 0.07704494953 | N12: ty = | O12: =O11*D40 -> 7579.689157 | R12: =(F11-(D11*O11))^2 -> 24.849285
C13: 47173 | D13: 7205 | E13: 350.83 | F13: 13 | L13: =(F12-(E12*I11))^2 -> 130.1876206 | R13: =(F12-(D12*O11))^2 -> 37.71412079
C14: 47480 | D14: 16180 | E14: 520.93 | F14: 38 | L14: =(F13-(E13*I11))^2 -> 13.81824118 | R14: =(F13-(D13*O11))^2 -> 5.060581795
C15: 47510 | D15: 20592 | E15: 603.33 | F15: 18 | H15: σ²R = | I15: =SUM(L8:L37)/(D41-1) -> 247.6214173 | L15: =(F14-(E14*I11))^2 -> 173.6420034 | N15: σ²R = | O15: =SUM(R8:R37)/(D41-1) -> 342.4280201 | R15: =(F14-(D14*O11))^2 -> 192.0488276
C16: 47562 | D16: 23654 | E16: 624.5 | F16: 23 | L16: =(F15-(E15*I11))^2 -> 115.5428761 | R16: =(F15-(D15*O11))^2 -> 161.9226351
C17: 47622 | D17: 2826 | E17: 287.82 | F17: 4 | H17: O número total de parcelas foi estimado: | I17: N = | J17: =I12/I10 -> 249.9807128 | L17: =(F16-(E16*I11))^2 -> 45.66856642 | N17: O número total de parcelas foi estimado: | O17: N = | P17: =O12/O10 -> 251.8169155 | R17: =(F16-(D16*O11))^2 -> 151.1332695
C18: 47659 | D18: 11901 | E18: 545.79 | F18: 33 | L18: =(F17-(E17*I11))^2 -> 94.3777255 | R18: =(F17-(D17*O11))^2 -> 0.04692167772
C19: 47661 | D19: 25829 | E19: 801.59 | F19: 31 | H19: Var R = | I19: =(I15/(D41*I9))*(1-(D41/J17)) -> 0.01194925198 | L19: =(F18-(E18*I11))^2 -> 48.89831675 | N19: Var R = | O19: =(O15/(O9*D41))*(1-(D41/P17)) -> 0.000517916516 | R19: =(F18-(D18*O11))^2 -> 232.3421162
C20: 47711 | D20: 17267 | E20: 540.29 | F20: 25 | H20: Est. T = | I20: 2.048 | L20: =(F19-(E19*I11))^2 -> 51.78690421 | N20: Est. T = | O20: 2.048 | R20: =(F19-(D19*O11))^2 -> 56.8349852
C21: 47940 | D21: 4229 | E21: 260.37 | F21: 19 | H21: Erro amostral | I21: =I20*SQRT(I19) -> 0.2238722747 | L21: =(F20-(E20*I11))^2 -> 0.5553053026 | N21: Erro amostral | O21: =O20*SQRT(O19) -> 0.04660793189 | R21: =(F20-(D20*O11))^2 -> 0.5832700326
C22: 47975 | D22: 23089 | E22: 616.09 | F22: 23 | H22: Erro amostral (%) | I22: =(I21/I11)*100 -> 469.8196448 | L22: =(F21-(E21*I11))^2 -> 43.47017267 | N22: Erro amostral (%) | O22: =(O21/O11)*100 -> 3123.691467 | R22: =(F21-(D21*O11))^2 -> 161.0360899
C23: 48025 | D23: 33590 | E23: 1050.74 | F23: 48 | L23: =(F22-(E22*I11))^2 -> 40.41284694 | R23: =(F22-(D22*O11))^2 -> 131.116304
C24: 48128 | D24: 39634 | E24: 1379.03 | F24: 45 | H24: Tamanho de amostra | L24: =(F23-(E23*I11))^2 -> 4.27860862 | N24: Tamanho de amostra | R24: =(F23-(D23*O11))^2 -> 4.489822608
C25: 48143 | D25: 5559 | E25: 334.17 | F25: 11 | H25: E_% = | I25: 5 | L25: =(F24-(E24*I11))^2 -> 428.9754638 | N25: E_% = | O25: 5 | R25: =(F24-(D24*O11))^2 -> 199.8559906
C26: 48149 | D26: 27247 | E26: 678.04 | F26: 44 | H26: V_% = | I26: =(SQRT(I15)/I11)*100 -> 33023.64163 | L26: =(F25-(E25*I11))^2 -> 24.24015408 | N26: V_% = | O26: =(SQRT(O15)/O11)*100 -> 1240203.481 | R26: =(F25-(D25*O11))^2 -> 7.319919995
C27: 48211 | D27: 13460 | E27: 650.36 | F27: 13 | L27: =(F26-(E26*I11))^2 -> 136.6778482 | R27: =(F26-(D26*O11))^2 -> 11.19126227
C28: 48511 | D28: 3621 | E28: 368.33 | F28: 26 | H28: Iteração | L28: =(F27-(E27*I11))^2 -> 323.6436583 | N28: Iteração | R28: =(F27-(D27*O11))^2 -> 50.17424314
C29: 48523 | D29: 46159 | E29: 902.34 | F29: 98 | H29: t | I29: n | L29: =(F28-(E28*I11))^2 -> 71.38261912 | N29: t | O29: n | R29: =(F28-(D28*O11))^2 -> 424.2439637
C30: 48524 | D30: 18228 | E30: 534.6 | F30: 40 | H30: 2.048 | I30: =(I20^2 * I26^2 * J17)/(I25^2 * I10 + I20^2 * I26^2) -> 249.9806717 | L30: =(F29-(E29*I11))^2 -> 3025.316999 | N30: 2.048 | O30: =(O20^2 * O26^2 * P17)/(O25^2 * O10 + O20^2 * O26^2) -> 251.8169155 | R30: =(F29-(D29*O11))^2 -> 848.3905137
C31: 50018 | D31: 72805 | E31: 1200.65 | F31: 37 | H31: 1.96 | I31: =(H31^2 * I26^2 * J17)/(I25^2 * I10 + H31^2 * I26^2) -> 249.9806679 | L31: =(F30-(E30*I11))^2 -> 211.0030576 | N31: 1.96 | O31: =(N31^2 * O26^2 * P17)/(O25^2 * O10 + N31^2 * O26^2) -> 251.8169155 | R31: =(F30-(D30*O11))^2 -> 163.9012228
C32: 50061 | D32: 35011 | E32: 1077.53 | F32: 47 | L32: =(F31-(E31*I11))^2 -> 408.51661 | R32: =(F31-(D31*O11))^2 -> 5130.968991
C33: 50372 | D33: 2554 | E33: 209.09 | F33: 8 | L33: =(F32-(E32*I11))^2 -> 18.8793866 | R33: =(F32-(D32*O11))^2 -> 27.44883775
C34: 52782 | D34: 25767 | E34: 913.88 | F34: 30 | L34: =(F33-(E33*I11))^2 -> 3.854474379 | R34: =(F33-(D33*O11))^2 -> 17.54965853
C35: 58477 | D35: 14367 | E35: 477.6 | F35: 47 | L35: =(F34-(E34*I11))^2 -> 183.5214031 | R35: =(F34-(D34*O11))^2 -> 71.34149168
C36: 59564 | D36: 10164 | E36: 502.3 | F36: 24 | L36: =(F35-(E35*I11))^2 -> 587.6761778 | R36: =(F35-(D35*O11))^2 -> 653.4826527
L37: =(F36-(E36*I11))^2 -> 0.004232984361 | R37: =(F36-(D36*O11))^2 -> 78.048622
A38: Informações sobre o bairro:
A39: (i) Perímetro total das quadras no bairro = | E39: 157907.9 | F39: m
A40: (ii) Área total das quadras no bairro = | D40: 5079953 | E40: m²
A41: n° de quadras | C41: n = | D41: 29
A43: 1 - | B43: O número total estimado de árvores varia conforme se usa as diferentes variáveis auxiliares,
B44: para o perímetro, obteve-se um total de 7525, ao passo que, para a área, obteve-se um total de 7580 árvores.
A46: 2 - | B46: Como variável auxiliar, o perímetro apresenta maior precisão em relação a área, pois o seu R
B47: apresenta menor erro amostral e menor variância, ou seja, menor dispersão de dados.
A49: 3 - | B49: O tamanho de amostra ideal das duas variáveis é próximo, sendo para o perímetro de 250 e para a área, de 252.
